bitfinex-derivatives/quotes_SOLF0:USTF0_20250207
["timestamp","ask_amount","ask_price","bid_price","bid_amount"]
[1738958285103,9.0378387,195.5,195.43,9.0378387]
[1738958285705,0.03639329,195.48,195.43,9.0378387]
[1738958286802,5.15079329,195.48,195.43,9.0378387]
[1738958287308,5.1148,195.47,195.41,9.0378387]
[1738958287508,9.0378387,195.45,195.37,9.0378387]
[1738958287805,5.1157,195.43,195.37,14.1549387]
[1738958288004,9.0378387,195.45,195.39,9.0378387]
[1738958288202,0.03693343,195.42,195.39,9.0378387]
[1738958288504,9.0378387,195.41,195.35,9.0378387]
[1738958288810,11.0780387,195.41,195.33,9.0378387]
[1738958288999,9.0378387,195.39,195.33,9.0378387]
[1738958289801,5.1172,195.37,195.33,9.0378387]
[1738958290207,9.0378387,195.39,195.33,9.0378387]
[1738958290609,14.1547387,195.39,195.33,9.0378387]
[1738958290809,9.0378387,195.39,195.33,9.0378387]
[1738958292812,0.03480408,195.4,195.33,14.1559387]
[1738958293014,0.03480408,195.4,195.35,9.0378387]
[1738958293316,2.0402,195.41,195.37,9.0378387]
[1738958293515,0.03365105,195.39,195.37,9.0378387]
[1738958294816,0.03365105,195.39,195.37,14.1550387]
[1738958295111,0.03365105,195.39,195.37,9.0378387]
[1738958296122,0.03365105,195.39,195.38,5.1169]
[1738958296320,200.0378387,195.45,195.37,9.0378387]
[1738958296321,9.0378387,195.52,195.37,9.0378387]
[1738958296518,9.0378387,195.52,195.44,9.0378387]
[1738958297421,9.0378387,195.5,195.44,9.0378387]
[1738958297619,9.07605085,195.5,195.46,0.03708069]
[1738958298016,5.1143,195.49,195.46,0.03708069]
[1738958298716,0.03821215,195.5,195.46,0.03708069]
[1738958299022,5.1143,195.48,195.46,0.03708069]
[1738958301121,5.15221215,195.5,195.46,0.03708069]
[1738958301923,0.03821215,195.5,195.47,5.1146]
[1738958302219,0.03821215,195.5,195.46,0.03708069]
[1738958303728,0.03821215,195.5,195.46,5.15188069]
[1738958303925,0.03821215,195.5,195.46,0.03708069]
[1738958304325,5.1146,195.47,195.46,0.03708069]
[1738958306423,5.1141,195.49,195.46,0.03708069]
[1738958307231,5.1143,195.48,195.46,0.03708069]
[1738958307629,0.03821215,195.5,195.46,0.03708069]
[1738958307832,5.1141,195.49,195.46,0.03708069]
[1738958308628,0.03821215,195.5,195.46,0.03708069]
[1738958309632,5.15201215,195.5,195.46,0.03708069]
[1738958310031,0.03821215,195.5,195.46,5.15188069]
[1738958310229,0.03821215,195.5,195.46,0.03708069]
[1738958310736,0.03821215,195.5,195.47,5.1145]
[1738958315737,0.03821215,195.5,195.46,0.03708069]
[1738958315937,5.15211215,195.5,195.46,0.03708069]
[1738958318533,0.03821215,195.5,195.46,0.03708069]
[1738958318739,0.03821215,195.5,195.47,14.15678389]
[1738958321136,9.08039604,195.5,195.46,0.03708069]
[1738958321442,0.03821215,195.5,195.46,0.03708069]
[1738958322041,0.03821215,195.5,195.47,9.04218389]
[1738958322946,0.03821215,195.5,195.46,0.03708069]
[1738958322947,0.03821215,195.5,195.49,9.04218389]
[1738958323342,0.03821215,195.5,195.49,14.15618389]
[1738958324144,0.03821215,195.5,195.49,9.04218389]
[1738958326046,0.03821215,195.5,195.47,9.04218389]
[1738958326749,0.03821215,195.5,195.47,14.15668389]
[1738958327748,0.03821215,195.5,195.49,9.04218389]
[1738958328148,0.03821215,195.5,195.49,14.15618389]
[1738958333558,58.63568116,195.54,195.49,9.04218389]
[1738958333757,58.63568116,195.54,195.53,9.04218389]
[1738958334057,58.63568116,195.54,195.51,9.04218389]
[1738958334858,63.78249278,195.54,195.51,9.07548066]
[1738958336350,58.66969278,195.54,195.51,0.03329677]
[1738958336552,9.04218389,195.52,195.45,9.04218389]
[1738958337653,5.14655265,195.5,195.47,0.03392864]
[1738958338857,0.03275265,195.5,195.47,0.03392864]
[1738958339560,0.03275265,195.5,195.49,9.04218389]
[1738958340557,0.03275265,195.5,195.49,14.15618389]
[1738958340761,0.03275265,195.5,195.49,9.04218389]
[1738958341055,0.03275265,195.5,195.47,0.03392864]
[1738958341460,9.07493654,195.5,195.47,0.03392864]
[1738958342052,5.1143,195.48,195.47,0.03392864]
[1738958342553,9.04218389,195.48,195.43,9.04218389]
[1738958342754,9.04218389,195.48,195.41,9.04218389]
[1738958343561,9.04218389,195.46,195.39,9.04218389]
[1738958343962,0.03353118,195.44,195.39,9.04218389]
[1738958344161,5.14913118,195.44,195.39,9.04218389]
[1738958344356,5.14913118,195.44,195.41,9.04218389]
[1738958344554,0.03353118,195.44,195.41,9.04218389]
[1738958344956,0.03353118,195.44,195.41,14.15828389]
[1738958345561,0.03353118,195.44,195.43,9.04218389]
[1738958346664,0.03353118,195.44,195.4,14.1343967]
[1738958346861,0.03353118,195.44,195.43,14.1343967]
[1738958348065,0.03353118,195.44,195.43,19.2499967]
[1738958349267,0.03353118,195.44,195.37,14.1343967]
[1738958349760,0.03353118,195.44,195.37,19.2513967]
[1738958349761,5.1157,195.43,195.37,19.2513967]
[1738958350265,0.03353118,195.44,195.37,14.1343967]
[1738958351164,0.03353118,195.44,195.4,5.1163]
[1738958351368,1.6373,195.52,195.4,14.1343967]
[1738958351567,0.03660556,195.44,195.4,14.1343967]
[1738958351768,1.6373,195.52,195.41,5.1166]
[1738958351962,0.03675061,195.44,195.41,5.1166]
[1738958352162,0.0388762,195.48,195.41,5.1166]
[1738958352365,5.1151,195.47,195.41,5.1166]
[1738958352560,0.0388762,195.48,195.41,5.1166]
[1738958353164,5.1536762,195.48,195.42,5.1163]
[1738958355069,5.1151,195.47,195.42,5.1163]
[1738958355969,0.0388762,195.48,195.43,14.1343967]
[1738958356262,1.6373,195.52,195.43,14.1343967]
[1738958356467,0.03368788,195.47,195.44,5.1157]
[1738958357268,0.03368788,195.47,195.43,14.1343967]
[1738958357668,0.03368788,195.47,195.4,14.1343967]
[1738958357871,1.6373,195.52,195.4,14.1343967]
[1738958358168,5.15464304,195.45,195.4,14.1343967]
[1738958358370,0.03904304,195.45,195.4,14.1343967]
[1738958358570,0.03904304,195.45,195.37,14.1343967]
[1738958358764,14.1343967,195.5,195.37,14.1343967]
[1738958358967,0.03565883,195.43,195.37,14.1343967]
[1738958359471,0.03565883,195.43,195.34,14.1343967]
[1738958359674,5.1177,195.38,195.34,14.1343967]
[1738958361173,5.1172,195.39,195.34,14.1343967]
[1738958362869,0.03541474,195.4,195.35,5.1182]
[1738958363067,0.03541474,195.4,195.34,14.1343967]
[1738958363271,0.03541474,195.4,195.3,14.1343967]
[1738958363272,0.03541474,195.4,195.37,14.1343967]
[1738958363962,0.03541474,195.4,195.37,19.2520967]
[1738958364672,0.03541474,195.4,195.38,5.1174]
[1738958364868,0.03541474,195.4,195.37,14.1343967]
[1738958365066,3.2024,195.45,195.37,14.1343967]
[1738958365266,1.586,195.45,195.41,14.1343967]
[1738958366273,1.62486523,195.45,195.41,14.17333372]
[1738958367172,1.62486523,195.45,195.41,19.28993372]
[1738958368172,0.03886523,195.45,195.41,19.28993372]
[1738958369274,0.03886523,195.45,195.41,14.17333372]
[1738958370178,0.03886523,195.45,195.41,19.28993372]
[1738958371773,0.03886523,195.45,195.41,14.17333372]
[1738958373879,0.03886523,195.45,195.41,19.28993372]
[1738958376579,0.03886523,195.45,195.41,14.17333372]
[1738958377680,0.03886523,195.45,195.41,19.28993372]
[1738958380183,0.03886523,195.45,195.41,14.17333372]
[1738958380386,0.03886523,195.45,195.44,14.1343967]
[1738958380585,0.03886523,195.45,195.44,9.04359782]
[1738958381285,0.03886523,195.45,195.44,14.15939782]
[1738958382583,0.03886523,195.45,195.44,9.04359782]
[1738958383685,0.03886523,195.45,195.44,14.15939782]
[1738958384487,0.03886523,195.45,195.44,9.04359782]
[1738958384687,0.03886523,195.45,195.42,9.04359782]
[1738958388686,0.03886523,195.45,195.41,0.03893702]
[1738958388687,0.03886523,195.45,195.44,9.04359782]
[1738958389992,0.03886523,195.45,195.42,9.04359782]
[1738958391195,5.15466523,195.45,195.42,9.04359782]
[1738958392291,0.03886523,195.45,195.42,9.04359782]
[1738958392588,0.03886523,195.45,195.44,9.04359782]
[1738958394795,0.03886523,195.45,195.42,9.04359782]
[1738958395295,0.03886523,195.45,195.44,9.04359782]
[1738958397893,0.03886523,195.45,195.42,9.04359782]
[1738958398290,5.15466523,195.45,195.42,9.04359782]
[1738958398494,0.03886523,195.45,195.42,9.04359782]
[1738958400192,0.03886523,195.45,195.44,9.04359782]
[1738958402590,0.03886523,195.45,195.44,14.15939782]
[1738958402893,11.08199177,195.56,195.44,9.04359782]
[1738958403092,11.08199177,195.56,195.55,9.04359782]
[1738958403499,140.88031012,195.57,195.55,9.04359782]
[1738958403793,140.88031012,195.57,195.51,9.04359782]
[1738958403993,140.88031012,195.57,195.54,0.03610211]
[1738958404194,140.88031012,195.57,195.53,9.04359782]
[1738958404502,0.03450938,195.57,195.53,9.07908584]
[1738958405198,5.1127,195.56,195.53,9.07908584]
[1738958405702,0.03450938,195.57,195.53,9.07908584]
[1738958405897,0.03450938,195.57,195.55,9.04359782]
[1738958406099,40.22904018,195.59,195.55,9.04359782]
[1738958406298,22.74144018,195.59,195.58,9.04359782]
[1738958406500,141.51699991,195.6,195.58,9.04359782]
[1738958406796,9.04359782,195.64,195.56,9.04359782]
[1738958407095,142.2585937,195.67,195.4,11.60377444]
[1738958407096,9.04359782,195.6,195.54,9.04359782]
[1738958407295,9.04359782,195.6,195.58,0.03664868]
[1738958407800,5.1122,195.58,195.57,0.03523376]
[1738958408695,9.04359782,195.6,195.57,0.03523376]
[1738958408895,14.15549782,195.6,195.57,0.03523376]
[1738958409096,0.03477847,195.61,195.57,0.03523376]
[1738958409499,9.04359782,195.6,195.57,0.03523376]
[1738958410695,5.1119,195.59,195.57,0.03523376]
[1738958411199,14.15579782,195.58,195.57,0.03523376]
[1738958411390,9.04359782,195.58,195.5,9.04359782]
[1738958411594,9.04359782,195.52,195.47,28.26187903]
[1738958411797,5.1143,195.5,195.47,28.26187903]
[1738958411998,9.04359782,195.52,195.46,28.26187903]
[1738958412603,0.03742713,195.51,195.47,0.03696615]
[1738958413103,5.1146,195.49,195.47,0.03696615]
[1738958413603,5.1148,195.48,195.47,0.03696615]
[1738958414104,5.1148,195.49,195.47,0.03696615]
[1738958414802,0.03742713,195.51,195.47,0.03696615]
[1738958416401,5.1146,195.49,195.47,0.03696615]
[1738958416595,0.03742713,195.51,195.47,0.03696615]
[1738958416794,0.03742713,195.51,195.44,14.13262222]
[1738958416795,14.17004935,195.51,195.38,26.32333766]
[1738958417003,14.13262222,195.51,195.38,26.32333766]
[1738958417198,14.13262222,195.51,195.38,21.20613766]
[1738958417498,5.1161,195.44,195.38,21.20613766]
[1738958417708,5.1161,195.44,195.39,7.07351544]
[1738958418203,0.03707892,195.43,195.4,0.03883863]
[1738958419206,5.1166,195.42,195.4,0.03883863]
[1738958419408,0.03707892,195.43,195.4,0.03883863]
[1738958421014,0.03707892,195.43,195.33,5.1185]
[1738958421208,0.03707892,195.43,195.32,21.20613766]
[1738958421607,0.03707892,195.43,195.32,7.07351544]
[1738958421814,0.03707892,195.43,195.35,14.13262222]
[1738958422203,0.03707892,195.43,195.37,5.1175]
[1738958422413,0.03707892,195.43,195.35,14.13262222]
[1738958422609,5.1167,195.41,195.37,5.1176]
[1738958423014,5.1167,195.41,195.35,14.13262222]
[1738958423313,5.1175,195.38,195.32,14.13262222]
[1738958423514,14.16970114,195.43,195.29,14.13262222]
[1738958423721,5.1181,195.36,195.31,5.1192]
[1738958424115,0.03579177,195.38,195.31,5.1192]
[1738958424515,5.118,195.36,195.31,5.1192]
[1738958424818,0.03579177,195.38,195.27,28.26187903]
[1738958425016,0.03579177,195.38,195.26,14.13262222]
[1738958425216,5.119,195.32,195.26,14.13262222]
[1738958425414,0.03618977,195.34,195.26,14.13262222]
[1738958425615,5.1196,195.3,195.26,14.13262222]
[1738958425920,17.93262222,195.4,195.26,14.13262222]
[1738958426121,0.03499229,195.3,195.26,14.13262222]
[1738958426316,207.9466,195.39,195.26,14.13262222]
[1738958426516,0.03380372,195.3,195.26,14.13262222]
[1738958426717,5.1184,195.35,195.26,14.13262222]
[1738958426918,0.03682839,195.3,195.26,19.25322222]
[1738958427118,191.0,195.38,195.26,19.25322222]
[1738958427319,0.03533502,195.3,195.26,14.13262222]
[1738958427515,206.35,195.38,195.26,14.13262222]
[1738958427719,14.13262222,195.34,195.25,28.26187903]
[1738958427919,0.0336228,195.3,195.23,14.13262222]
[1738958428319,5.1205,195.27,195.21,7.07351544]
[1738958428626,1.5526,195.29,195.21,7.07351544]
[1738958428923,5.121,195.25,195.21,7.07351544]
[1738958429119,0.03408505,195.26,195.21,7.07351544]
[1738958429520,5.1216,195.22,195.21,7.07351544]
[1738958430222,2.0178,195.25,195.21,7.07351544]
[1738958430623,7.1389,195.25,195.18,5.1226]
[1738958430819,2.0178,195.25,195.17,14.13262222]
[1738958431623,5.1217,195.22,195.16,5.123]
[1738958431823,5.1217,195.22,195.14,14.13262222]
[1738958432024,2.0178,195.25,195.14,14.13262222]
[1738958432226,0.0393828,195.2,195.14,14.13262222]
[1738958432723,0.0393828,195.2,195.15,5.1234]
[1738958432927,0.0393828,195.2,195.13,28.26187903]
[1738958433524,0.0393828,195.2,195.08,14.13262222]
[1738958433724,14.13262222,195.19,195.08,14.13262222]
[1738958434220,0.03514368,195.15,195.08,14.13262222]
[1738958434417,0.03514368,195.15,195.05,14.13262222]
[1738958434622,3.75594368,195.15,195.02,14.13262222]
[1738958434831,3.7208,195.15,195.02,14.13262222]
[1738958435128,0.03847939,195.1,195.02,14.13262222]
[1738958436623,0.03847939,195.1,194.99,14.13262222]
[1738958436828,14.17110161,195.1,194.96,14.13262222]
[1738958437024,14.13262222,195.1,194.96,14.13262222]
[1738958437422,0.03870217,195.05,194.96,14.13262222]
[1738958437624,0.03870217,195.05,194.89,7.07351544]
[1738958437826,14.13262222,194.98,194.89,4.59281544]
[1738958438025,22.59362222,195.04,194.89,18.72543766]
[1738958438227,14.13262222,195.01,194.89,18.72543766]
[1738958438528,0.03656216,194.95,194.89,18.72543766]
[1738958438927,5.1262,195.05,194.92,14.13262222]
[1738958439125,2.1721,195.09,194.97,14.13262222]
[1738958439330,294.86,195.19,194.93,0.1163]
[1738958439331,18.99262222,195.19,195.03,14.13262222]
[1738958439630,2.1721,195.18,195.06,14.13262222]
[1738958439829,14.13262222,195.25,195.12,14.13262222]
[1738958440335,0.03562651,195.18,195.15,14.16864113]
[1738958440631,5.1203,195.27,195.17,14.13262222]
[1738958440825,3.5815,195.29,195.2,14.13262222]
[1738958441032,72.83626561,195.37,195.23,14.13262222]
[1738958441230,3.5815,195.36,195.23,14.13262222]
[1738958441829,0.03840509,195.31,195.28,0.03260873]
[1738958442022,14.17102731,195.31,195.14,14.13262222]
[1738958442222,14.13262222,195.23,195.11,14.13262222]
[1738958442423,3.5815,195.22,195.08,14.13262222]
[1738958442627,26.27437738,195.22,195.04,22.69287738]
[1738958442926,5.1227,195.18,195.04,22.69287738]
[1738958443229,3.5815,195.22,195.13,5.1239]
[1738958443431,0.03744792,195.15,195.13,5.1239]
[1738958443723,3.5815,195.22,195.14,5.1235]
[1738958443921,3.5815,195.22,195.12,22.69287738]
[1738958444126,5.1201,195.28,195.16,22.69287738]
[1738958444326,3.614,195.29,195.16,22.69287738]
[1738958444530,3.614,195.29,195.2,22.69287738]
[1738958444930,0.03451395,195.24,195.21,0.03387761]
[1738958452338,0.03451395,195.24,195.13,1.5494]
[1738958452631,5.1216,195.22,195.14,5.1237]
[1738958452834,1.6043,195.23,195.1,36.83074049]
[1738958453434,0.03785485,195.18,195.15,0.02011431]
[1738958454738,0.03785485,195.18,195.15,5.14341431]
[1738958454938,0.03785485,195.18,195.15,0.02011431]
[1738958457840,5.123,195.17,195.15,0.02011431]
[1738958458136,0.03785485,195.18,195.15,0.02011431]
[1738958458841,5.1232,195.16,195.15,0.02011431]
[1738958460749,0.03785485,195.18,195.09,5.1249]
[1738958460943,0.03785485,195.18,195.06,5.1256]
[1738958461243,36.83074049,195.18,195.02,36.83074049]
[1738958461447,2.1663,195.17,195.02,36.83074049]
[1738958461642,2.1663,195.17,195.04,5.1263]
[1738958461943,0.03877841,195.12,195.0,22.76266359]
[1738958462145,0.03877841,195.12,195.02,5.1268]
[1738958462342,36.83074049,195.14,195.0,21.18836359]
[1738958462643,0.0361568,195.09,194.97,21.18836359]
[1738958463147,36.83074049,195.08,194.97,21.18836359]
[1738958463451,0.03879823,195.05,194.97,21.18836359]
[1738958464335,0.03879823,195.05,194.98,36.83074049]
[1738958465941,5.16489823,195.05,194.99,5.1276]
[1738958466151,36.83074049,195.03,194.9,21.18836359]
[1738958466443,5.1382,195.04,194.9,21.18836359]
[1738958466644,0.03422597,194.98,194.9,21.18836359]
[1738958466845,0.03422597,194.98,194.91,5.1296]
[1738958467037,0.03422597,194.98,194.89,36.83074049]
[1738958467843,0.03422597,194.98,194.91,5.1297]
[1738958468848,0.03422597,194.98,194.92,5.1294]
[1738958469347,0.03422597,194.98,194.94,27.857586]
[1738958469649,5.1382,195.04,194.94,27.857586]
[1738958469848,0.03490594,194.98,194.94,27.857586]
[1738958470244,0.03490594,194.98,194.96,5.1283]
[1738958471142,2.0975,195.09,194.97,22.728786]
[1738958471642,5.1271,195.02,194.93,22.728786]
[1738958471846,4.74,195.07,194.89,22.728786]
[1738958472048,22.728786,195.04,194.86,1.5258]
[1738958472254,1.6218,195.03,194.86,1.5258]
[1738958472452,0.03322404,195.0,194.96,0.03490594]
[1738958473245,5.1281,194.98,194.96,0.03490594]
[1738958473550,0.03322404,195.0,194.96,0.03490594]
[1738958474152,5.1282,194.97,194.96,0.03490594]
[1738958474348,0.03322404,195.0,194.96,0.03490594]
[1738958475047,5.1282,194.97,194.96,0.03490594]
[1738958475250,22.76201004,195.0,194.81,22.728786]
[1738958475455,15.35,194.99,194.81,22.728786]
[1738958475749,3.1438,195.03,194.85,22.728786]
[1738958476053,3.1438,195.03,194.89,22.728786]
[1738958476249,3.1438,195.03,194.95,5.1286]
[1738958476250,5.1274,195.0,194.95,5.1286]
[1738958476554,0.03458598,194.98,194.95,5.1286]
[1738958476850,0.03458598,194.98,194.96,5.1284]
[1738958477849,0.03458598,194.98,194.89,22.728786]
[1738958478250,0.03458598,194.98,194.86,1.6036]
[1738958478454,3.1438,195.03,194.86,1.6036]
[1738958478661,0.03246733,194.94,194.86,1.6036]
[1738958478847,0.03246733,194.94,194.89,22.728786]
[1738958479148,0.03246733,194.94,194.91,5.1296]
[1738958479354,0.03246733,194.94,194.89,22.728786]
[1738958479545,0.03246733,194.94,194.86,1.6036]
[1738958480354,5.1298,194.91,194.83,5.1316]
[1738958480749,0.03530221,194.89,194.83,5.1316]
[1738958481156,0.03530221,194.89,194.84,5.1316]
[1738958481358,0.03530221,194.89,194.77,1.5706]
[1738958481659,0.03530221,194.89,194.78,0.055]
[1738958482058,0.03530221,194.89,194.85,5.1311]
[1738958482256,0.03530221,194.89,194.78,0.055]
[1738958482660,0.03530221,194.89,194.84,5.1314]
[1738958483153,0.03530221,194.89,194.85,5.1311]
[1738958483359,0.03530221,194.89,194.78,0.055]
[1738958483655,2.1004,195.0,194.88,22.728786]
[1738958484053,2.1004,195.0,194.89,1.5401]
[1738958484862,0.03383361,194.96,194.93,0.03530221]
[1738958487361,5.129,194.94,194.93,0.03530221]
[1738958489053,0.03383361,194.96,194.82,1.5844]
[1738958489256,5.1302,194.9,194.85,5.1313]
[1738958489457,5.1302,194.9,194.82,1.5844]
[1738958489960,42.758786,194.98,194.84,5.1315]
[1738958490161,27.408786,194.98,194.82,1.5844]
[1738958490362,5.16847002,194.93,194.85,5.1313]
[1738958490563,0.03917002,194.93,194.85,22.728786]
[1738958490863,0.03917002,194.93,194.82,1.5844]
[1738958491064,5.1301,194.9,194.84,5.1315]
[1738958491267,27.408786,194.98,194.82,1.5844]
[1738958491463,5.16348489,194.89,194.82,6.7164]
[1738958491663,0.03298489,194.89,194.78,0.055]
[1738958491863,0.03298489,194.89,194.77,22.728786]
[1738958492165,3.007,194.93,194.77,22.728786]
[1738958492469,0.03457561,194.85,194.77,22.728786]
[1738958492971,0.03457561,194.85,194.8,22.728786]
[1738958493167,5.1308,194.87,194.8,22.728786]
[1738958493370,0.03305973,194.84,194.8,22.728786]
[1738958494170,0.03305973,194.84,194.77,22.728786]
[1738958494772,0.03305973,194.84,194.77,5.1333]
[1738958495069,0.03305973,194.84,194.77,22.728786]
[1738958495873,0.03305973,194.84,194.8,22.728786]
[1738958496469,0.03305973,194.84,194.81,5.1323]
[1738958496774,0.03305973,194.84,194.8,22.728786]
[1738958497271,0.03305973,194.84,194.82,5.1319]
[1738958497573,86.17568661,195.0,194.83,22.728786]
[1738958497769,2.1421,194.97,194.83,22.728786]
[1738958498375,2.1421,194.97,194.86,5.131]
[1738958498673,5.1293,194.93,194.83,22.728786]
[1738958498875,5.16520484,194.93,194.9,0.03288074]
[1738958499074,5.16520484,194.93,194.86,5.1311]
[1738958499275,0.03590484,194.93,194.9,0.03305973]
[1738958499474,0.03590484,194.93,194.83,5.1316]
[1738958499676,0.03590484,194.93,194.9,0.03305973]
[1738958499875,2.1421,194.97,194.83,22.728786]
[1738958500175,0.03935944,194.93,194.9,0.03305973]
[1738958500474,5.1298,194.91,194.9,0.03305973]
[1738958502177,5.131,194.87,194.8,22.728786]
[1738958502378,15.35,194.93,194.81,5.1322]
[1738958503170,15.35,194.93,194.8,22.728786]
[1738958503480,0.03781902,194.89,194.83,22.728786]
[1738958503774,5.1297,194.92,194.86,5.1309]
[1738958503980,0.0359997,194.88,194.86,5.1309]
[1738958504382,0.0359997,194.88,194.87,5.1308]
[1738958504578,0.0359997,194.88,194.83,22.728786]
[1738958505576,0.0359997,194.88,194.83,27.860386]
[1738958505777,0.0359997,194.88,194.83,5.1316]
[1738958505978,0.0359997,194.88,194.77,22.728786]
[1738958506179,15.35,194.94,194.74,22.728786]
[1738958506476,0.03256435,194.84,194.74,22.728786]
[1738958508783,5.1319,194.83,194.76,5.1334]
[1738958509684,5.1319,194.83,194.74,22.728786]
[1738958509685,5.1319,194.83,194.77,5.1334]
[1738958510086,0.03256435,194.84,194.77,22.728786]
[1738958510586,5.132,194.83,194.75,5.1337]
[1738958510785,0.03256435,194.84,194.74,22.728786]
[1738958510985,0.03256435,194.84,194.71,22.728786]
[1738958511182,5.1335,194.77,194.68,22.728786]
[1738958511484,0.03787353,194.74,194.68,22.728786]
[1738958511686,0.03787353,194.74,194.71,5.1348]
[1738958511884,2.0711,194.82,194.68,22.728786]
[1738958512079,0.03654199,194.74,194.68,22.728786]
[1738958512286,0.03654199,194.74,194.71,5.135]
[1738958512883,0.03654199,194.74,194.7,5.1352]
[1738958513084,0.03654199,194.74,194.65,22.728786]
[1738958513784,0.03654199,194.74,194.62,7.10162551]
[1738958513985,22.728786,194.79,194.6,22.728786]
[1738958514181,5.1348,194.72,194.65,5.1365]
[1738958514377,0.03351134,194.7,194.6,22.728786]
[1738958514777,0.03351134,194.7,194.57,51.0187751]
[1738958514988,3.1292,194.7,194.57,51.0187751]
[1738958515184,0.0327778,194.65,194.57,28.2899891]
[1738958516396,0.0327778,194.65,194.48,22.728786]
[1738958516397,22.728786,194.64,194.48,22.728786]
[1738958516689,5.1378,194.61,194.48,22.728786]
[1738958516881,2.0626,194.6,194.48,22.728786]
[1738958517082,0.03546367,194.58,194.48,22.728786]
[1738958517289,0.03546367,194.58,194.47,7.10162551]
[1738958517483,22.76424967,194.58,194.47,7.10162551]
[1738958517889,5.1404,194.51,194.47,7.10162551]
[1738958518082,22.76424967,194.58,194.47,7.10162551]
[1738958518286,22.728786,194.58,194.47,7.10162551]
[1738958518487,0.03936623,194.54,194.47,7.10162551]
[1738958520291,0.03936623,194.54,194.42,140.92521966]
[1738958520292,0.03936623,194.54,194.41,22.728786]
[1738958520688,5.1399,194.53,194.45,5.1417]
[1738958520889,0.03882555,194.49,194.41,22.728786]
[1738958521190,0.03882555,194.49,194.37,101.6]
[1738958521191,0.03882555,194.49,194.48,5.1411]
[1738958521587,0.03882555,194.49,194.44,22.728786]
[1738958522391,0.03882555,194.49,194.47,5.1413]
[1738958522591,0.03882555,194.49,194.44,22.728786]
[1738958522793,1.6121,194.59,194.47,22.728786]
[1738958522991,1.6121,194.59,194.52,22.728786]
[1738958523289,1.5965,194.69,194.52,22.728786]
[1738958523491,2.0464,194.66,194.55,22.728786]
[1738958523886,2.0464,194.66,194.57,5.1385]
[1738958524082,2.0464,194.66,194.41,4.62]
[1738958524083,0.03683643,194.62,194.59,0.03727481]
[1738958524587,5.1374,194.63,194.53,5.1398]
[1738958524782,0.03361046,194.62,194.59,0.03317531]
[1738958525096,2.0464,194.66,194.59,0.0331317]
[1738958525390,0.03728488,194.62,194.59,0.0331317]
[1738958525691,213.728786,194.79,194.61,22.728786]
[1738958525894,3.5855,194.76,194.61,22.728786]
[1738958526084,26.314286,194.76,194.61,22.728786]
[1738958526590,26.314286,194.76,194.58,22.728786]
[1738958526783,3.5855,194.76,194.68,5.1357]
[1738958526987,0.03244331,194.69,194.68,5.1357]
[1738958527187,3.5855,194.76,194.64,22.728786]
[1738958527388,0.03832461,194.7,194.69,5.1355]
[1738958527592,27.388786,194.85,194.67,22.76258632]
[1738958527792,191.0,194.88,194.7,22.728786]
[1738958527793,2.0217,194.81,194.7,22.728786]
[1738958528591,2.0217,194.81,194.7,37.00328412]
[1738958528791,0.03636799,194.77,194.75,5.1338]
[1738958529185,0.03636799,194.77,194.74,0.03765286]
[1738958531695,6.799e-05,194.77,194.74,0.03765286]
[1738958531896,44.23628412,194.88,194.74,0.03765286]
[1738958532198,44.23628412,194.88,194.71,37.00328412]
[1738958532389,39.10548412,194.88,194.78,5.1331]
[1738958532589,39.10548412,194.88,194.71,37.00328412]
[1738958532792,5.1314,194.85,194.78,5.1332]
[1738958533093,0.0366005,194.81,194.77,0.03421036]
[1738958533886,37.00328412,194.79,194.77,0.03421036]
[1738958534090,37.00328412,194.79,194.6,37.00328412]
[1738958535195,1.5056,194.84,194.7,37.00328412]
[1738958536399,0.03398157,194.79,194.75,0.03768357]
[1738958536792,5.132,194.83,194.75,5.1337]
[1738958536991,0.03384096,194.79,194.75,5.17294447]
[1738958537597,0.03384096,194.79,194.76,5.1337]
[1738958538000,0.03384096,194.79,194.75,0.03924447]
[1738958538197,4.096e-05,194.79,194.78,5.1332]
[1738958538395,37.00328412,194.91,194.77,37.00328412]
[1738958538705,38.59818412,194.92,194.77,37.00328412]
[1738958538900,38.59818412,194.92,194.73,37.00328412]
[1738958539099,37.00328412,194.89,194.73,37.00328412]
[1738958539295,2.0911,194.88,194.73,37.00328412]
[1738958539499,0.03363672,194.83,194.79,5.16625983]
[1738958539701,0.03363672,194.83,194.79,0.03355983]
[1738958540103,1.5949,194.92,194.79,0.03355983]
[1738958540405,37.00328412,194.93,194.77,37.00328412]
[1738958540698,37.00328412,194.89,194.7,1.5856]
[1738958541004,37.00328412,194.85,194.7,1.5856]
[1738958541206,0.03440763,194.81,194.78,0.03258593]